Cogmind - Beta 15 @@@ ROGUE MODE // 2025.05.12 @ 23:45:50 Player: Henry Result: Destroyed by S-10 Pest with Light Assault Rifle Performance ------------- Evolutions (2) 1000 Regions Visited (3) 600 Robots Destroyed (47) 235 Value Destroyed (1420) 1420 Prototype IDs (1) 20 Alien Tech Used (0) 0 Bonus (0) 0 TOTAL SCORE: 3275 Bonus ------- None Cogmind --------- Core Integrity 0/550 Matter 44/300 Energy 100/100 System Corruption 0% Temperature Cool (0) Movement Core (400) Ox7 Location -8/Materials Parts ------- > --- POWER (1) -------- (None) > --- PROPULSION (4) --- (None) > --- UTILITY (4) ------ Large Storage Unit Weapon Shielding Weapon Shielding > --- WEAPON (2) ------- Scythe > --- INVENTORY (15) --- Heat Sink Compact Matter Pod (0) Structural Scanner Improved Terrain Scanner Heavy Assault Rifle Katana Scythe Peak State ------------ > --- POWER ------------ Light Nuclear Core > --- PROPULSION ------- Aluminum Leg Titanium Leg Improved Carbon-fiber Leg Improved Carbon-fiber Leg > --- UTILITY ---------- Large Storage Unit Advanced Targeting Computer Core Shielding Utility Shielding > --- WEAPON ----------- Assault Rifle Rocket Launcher > --- INVENTORY -------- Light Ion Engine Aluminum Leg Aluminum Leg Aluminum Leg Aluminum Leg Aluminum Leg Aluminum Leg Compact Wheel Heat Sink Compact Matter Pod Structural Scanner Improved Terrain Scanner Weapon Shielding Weapon Shielding Heavy Assault Rifle [Rating: 26] Favorites ----------- Power Light Ion Engine Engine Light Ion Engine Power Core Light Nuclear Core Propulsion Aluminum Leg Leg Aluminum Leg Wheel Compact Wheel Utility Large Storage Unit Storage Large Storage Unit Processor Advanced Targeting Computer Protection Weapon Shielding Weapon Shotgun Energy Gun Medium Laser Ballistic Gun Shotgun Launcher Rocket Launcher Slashing Weapon Scythe Build | -11 -10 -9 -8 ------- Run | Yrd Mat Mat Mat Slots Evolved 4 | . . 2 2 Power . | . . . . Propulsion 2 | . . 2 . Utility 2 | . . . 2 Weapon . | . . . . Parts Attached 46 | 7 2 14 23 Power 6 | 1 . 1 4 Engine 3 | 1 . 1 1 Core 3 | . . . 3 Reactor . | . . . . Propulsion 22 | 3 . 8 11 Treads . | . . . . Leg 18 | 1 . 6 11 Wheel 4 | 2 . 2 . Hover . | . . . . Flight . | . . . . Utility 10 | 1 2 2 5 Device . | . . . . Storage 3 | 1 1 1 . Processor 2 | . . . 2 Hackware . | . . . . Protection 5 | . 1 1 3 Artifact . | . . . . Weapon 8 | 2 . 3 3 Energy Gun 2 | 1 . 1 . Energy Cannon . | . . . . Ballistic Gun 4 | 1 . 2 1 Ballistic Cannon . | . . . . Launcher 1 | . . . 1 Special Weapon . | . . . . Impact Weapon . | . . . . Slashing Weapon 1 | . . . 1 Piercing Weapon . | . . . . Special Melee Weapon . | . . . . Unidentified Prototypes 1 | . . 1 . Parts Lost 28 | . . 5 23 Power 5 | . . 1 4 Propulsion 18 | . . 3 15 Utility 3 | . . 1 2 Weapon 2 | . . . 2 Highest Loss Streak 12 | . . 4 12 To Critical Strikes . | . . . . Average Backups 10 | 3 8 10 12 Power 1 | . 1 1 1 Propulsion 4 | 2 4 3 6 Utility 3 | . 1 4 4 Weapon 1 | . 1 1 1 Tool/Special . | . . . . Unused Backups 9 | . 1 1 7 Power 1 | . . 1 . Propulsion 1 | . 1 . . Utility 4 | . . . 4 Weapon 3 | . . . 3 Tool/Special . | . . . . Average Slot Usage (%) 91 | . 99 90 90 Engine 5 | . 14 10 2 Core 3 | . . . 6 Leg 23 | . . 15 31 Wheel 9 | . 28 22 . Storage 10 | . 14 11 9 Processor 3 | . . . 5 Protection 16 | . 13 8 21 Energy Gun 2 | . 14 3 . Ballistic Gun 11 | . 14 18 8 Launcher 1 | . . . 1 Slashing Weapon 2 | . . . 3 Peak Build Rating 26 | 6 8 13 26 Average Rating 13 | 5 7 11 17 On Entrance 6 | . 6 8 12 Naked Turns . | . . . . Heaviest Build 34 | 11 17 34 33 Greatest Support 63 | 26 26 52 63 Greatest Overweight (x) 8 | 1 . 8 7 Average Overweight (x) . | . . . . Largest Inventory Capacity 15 | 8 10 15 15 Average Capacity 13 | 7 9 12 15 Most Carried 15 | 7 10 13 15 Average Carried 11 | 3 8 10 12 Final Capacity 15 | 8 10 15 15 Final Carried 13 | 7 9 13 7 Class Distribution -------------------- 64% | Mutant 35% | Scavenger-Mutant Dominant Class ---------------- Mutant | -10/Materials Mutant | -9/Materials Scavenger-Mutant | -8/Materials Resources | -11 -10 -9 -8 ----------- Run | Yrd Mat Mat Mat Matter Collected 1067 | 279 30 181 577 Remotely . | . . . . Salvage Created 1444 | 180 69 400 795 Parts 96 | 12 6 30 48 Haulers Intercepted 1 | . . . 1 Recyclers Shooed . | . . . . Parts Field Recycled . | . . . . Retrieved Matter . | . . . . Parts Self-Destructed . | . . . . Prevented . | . . . . Kills | -11 -10 -9 -8 ------- Run | Yrd Mat Mat Mat Combat Hostiles Destroyed 32 | . 2 11 19 Melee 2 | . . . 2 Guns 20 | . 2 11 7 AOE 10 | . . . 10 Classes Destroyed 11 | 2 1 4 4 Worker 2 | . . 1 1 Builder 3 | . . . 3 Tunneler 7 | 5 . 1 1 Hauler 1 | . . . 1 Recycler 1 | 1 . . . Mechanic 1 | . . 1 . Swarmer 3 | . . 3 . Grunt 23 | . 2 6 15 Sentry 4 | . . 2 2 Specialist 1 | . . . 1 Heavy 1 | . . . 1 Best Kill Streak 8 | 5 1 6 8 Combat Bots Only 8 | . 1 6 8 Max Kills in Single Turn 3 | 1 1 2 3 Gunslinging . | . . . . Exploded 2 | . . . 2 Melee 1 | . . . 1 Uniques/NPCs Destroyed . | . . . . Combat | -11 -10 -9 -8 -------- Run | Yrd Mat Mat Mat Hostile Shots Fired 358 | . 13 64 281 Missed 117 | . 4 18 95 Hits 241 | . 9 46 186 Melee 3 | . . 3 . Projectile 238 | . 9 43 186 Critical Strikes 3 | . . . 3 Actively Blocked 2 | . . . 2 Damage Taken 3372 | 3 98 570 2701 Core 685 | . 22 111 552 Absorbed by Shields . | . . . . Redirected to Shielding 161 | . 15 35 111 Core Remaining (%) 87 | 100 91 72 . Volleys Fired 98 | 9 10 36 43 Largest 2 | 2 2 2 2 Hottest 76 | 70 70 76 53 Shots Fired 193 | 18 20 72 83 Gun 174 | 18 20 72 64 Cannon . | . . . . Launcher 19 | . . . 19 Special . | . . . . Kinetic 142 | 9 10 59 64 Thermal 32 | 9 10 13 . Explosive 19 | . . . 19 Electromagnetic . | . . . . Robot Hit Streak 18 | 3 9 11 18 Robot Miss Streak 8 | 2 2 8 5 Penetration Max . | . . . . Secondary Targets . | . . . . Shots Hit Robots 147 | 9 15 51 72 Core Hits 99 | 8 5 26 60 Critical Kills 1 | . . 1 . Critical Parts Destroyed 1 | . . 1 . Critical Strikes 9 | 2 . 4 3 Burn 4 | 2 . 2 . Destroy 2 | . . 2 . Sever 3 | . . . 3 Melee Attacks 12 | . . . 12 Impact . | . . . . Slashing 12 | . . . 12 Piercing . | . . . . Sneak Attacks 1 | . . . 1 Combat Hostiles . | . . . . Follow-up Attacks . | . . . . Damage Inflicted 3203 | 113 155 713 2222 Guns 1716 | 106 155 713 742 Cannons . | . . . . Explosions 1193 | . . . 1193 Melee 287 | . . . 287 Ramming 7 | 7 . . . Kinetic 1387 | 30 55 560 742 Thermal 329 | 76 100 153 . Explosive 1193 | . . . 1193 Electromagnetic . | . . . . Impact . | . . . . Slashing 287 | . . . 287 Piercing . | . . . . Highest Corruption 1 | . . 1 . Average Corruption 1 | . . 1 . Corruption Purged . | . . . . Corruption Blocked . | . . . . Effects 2 | . . 2 . Matter Fused 2 | . . 2 . Overload Shots . | . . . . Overflow Damage 8 | . . . 8 Projectiles . | . . . . Explosions 6 | . . . 6 Melee 2 | . . . 2 Knockbacks . | . . . . Impact . | . . . . Kinetic . | . . . . Secondary . | . . . . Self-Inflicted Damage 26 | 3 . . 23 Shots 1 | . . . 1 Rammed 1 | 1 . . . Targets Rammed 1 | 1 . . . Kicked . | . . . . Crushed . | . . . . Highest Temperature 208 | 60 208 131 9 Average Temperature 62 | 26 116 45 8 Received Heat Transfer 1128 | . 54 174 900 Siege Activations . | . . . . Martial Activations . | . . . . Shielding Activations . | . . . . Robots Disrupted . | . . . . Combat Hostiles . | . . . . Robots Corrupted . | . . . . Combat Hostiles . | . . . . Parts Fried . | . . . . Impact Corruptions . | . . . . Robots Melted . | . . . . Combat Hostiles . | . . . . Parts Melted 2 | . 1 1 . Heat Transferred 1147 | 370 296 481 . Parts Sabotaged . | . . . . Parts Stolen . | . . . . Parts Stripped . | . . . . Power Chain Reactions . | . . . . Alert | -11 -10 -9 -8 ------- Run | Yrd Mat Mat Mat Maximum Alert Level 1 | . . . 1 Low Security (%) 69 | 100 100 100 44 Level 1 30 | . . . 55 Level 2 . | . . . . Level 3 . | . . . . Level 4 . | . . . . Level 5 . | . . . . High Security . | . . . . Max Security . | . . . . Peak Influence 369 | 10 30 105 369 Initial 37 | . 3 . 37 Average 119 | 1 8 43 194 Influence Increases 1057 | 30 40 290 697 Destroy 0b10 Robot/C 640 | . 40 220 380 Destroy 0b10 Robot/NC 75 | 30 . 15 30 Destroy Leader 112 | . . 40 72 Disable Machine 30 | . . . 30 Destroy Structure 65 | . . . 65 Lose Combat Pursuer 135 | . . 15 120 Influence Decreases 870 | 25 45 200 600 Entered New Map 55 | . 2 . 53 Time Decay 548 | 25 43 130 350 Lost Part 247 | . . 50 197 Purge Threat 20 | . . 20 . Squads Dispatched 9 | . . 1 8 Investigation 1 | . . . 1 Extermination . | . . . . Reinforcement 5 | . . 1 4 Assault . | . . . . Garrison 3 | . . . 3 Intercept . | . . . . Searches Triggered . | . . . . Construction Impeded 1 | . . . 1 Haulers Reinforced . | . . . . Active Scanning Responses . | . . . . Cargo Convoy Interrupts . | . . . . Stealth | -11 -10 -9 -8 --------- Run | Yrd Mat Mat Mat Distress Signals 3 | . . . 3 Communications Jammed . | . . . . Distress Signals . | . . . . Times Spotted 67 | . 2 16 49 Peak Tracking Total 18 | . 2 6 18 Tactical Retreats 7 | . . 1 6 Traps | -11 -10 -9 -8 ------- Run | Yrd Mat Mat Mat Traps Triggered 1 | . . . 1 Indirectly . | . . . . Trap Hack Attempts . | . . . . Triggered . | . . . . Disarmed . | . . . . Reprogrammed . | . . . . Reused . | . . . . Traps Extracted . | . . . . Installed . | . . . . Triggered . | . . . . Machines | -11 -10 -9 -8 ---------- Run | Yrd Mat Mat Mat Machines Disabled 2 | . . . 2 Max in Single Turn 1 | . . . 1 Machines Repaired . | . . . . Machines Dismantled . | . . . . Machines Sabotaged . | . . . . Overloaded Fab Kills . | . . . . Hacking | -11 -10 -9 -8 --------- Run | Yrd Mat Mat Mat Machines Accessed 4 | . 1 2 1 Terminals 4 | . 1 2 1 Fabricators . | . . . . Repair Stations . | . . . . Recycling Units . | . . . . Scanalyzers . | . . . . Garrison Access . | . . . . Total Hacks 5 | . 1 3 1 Successful 1 | . . 1 . Failed 4 | . 1 2 1 Catastrophic 2 | . 1 . 1 Database Lockouts . | . . . . Manual 5 | . 1 3 1 Terminals 5 | . 1 3 1 Fabricators . | . . . . Repair Stations . | . . . . Recycling Units . | . . . . Scanalyzers . | . . . . Garrison Access . | . . . . Terminal Hacks 1 | . . 1 . Unreport Threat 1 | . . 1 . Fabricator Hacks . | . . . . Repair Station Hacks . | . . . . Recycling Unit Hacks . | . . . . Scanalyzer . | . . . . Garrison Access Hacks . | . . . . Unauthorized Hacks . | . . . . Terminals . | . . . . Fabricators . | . . . . Repair Stations . | . . . . Recycling Units . | . . . . Scanalyzers . | . . . . Garrison Access . | . . . . Data Cores Recovered . | . . . . Used . | . . . . Hacking Detections 3 | . 1 1 1 Full Trace Events . | . . . . Feedback Events . | . . . . Feedback Blocked . | . . . . Robot Schematics Acquired . | . . . . Robots Built . | . . . . Authchips . | . . . . Time . | . . . . Total Robot Build Rating . | . . . . Part Schematics Acquired . | . . . . Parts Built . | . . . . Authchips . | . . . . Time . | . . . . Total Part Build Rating . | . . . . Parts Repaired . | . . . . Time . | . . . . Parts Recycled . | . . . . Recycled Matter . | . . . . Retrieved Matter . | . . . . Retrieved Components . | . . . . Parts Scanalyzed . | . . . . Part Schematics Acquired . | . . . . Parts Damaged . | . . . . Bothacking | -11 -10 -9 -8 ------------ Run | Yrd Mat Mat Mat Used RIF Installer . | . . . . Robots Hacked . | . . . . Non-combat . | . . . . Combat . | . . . . Robot Hacks Applied . | . . . . Relay Couplers Released . | . . . . Fabnet Peak Effective % . | . . . . Robots Rewired . | . . . . Allies Hacked . | . . . . Hacks Repelled . | . . . . Allies | -11 -10 -9 -8 -------- Run | Yrd Mat Mat Mat Total Allies . | . . . . Largest Group . | . . . . Highest-Rated Group . | . . . . Highest-Rated Ally . | . . . . Total Orders . | . . . . Ally Attacks . | . . . . Total Damage . | . . . . Kills . | . . . . Allies Corrupted . | . . . . Allies Melted . | . . . . Intel | -11 -10 -9 -8 ------- Run | Yrd Mat Mat Mat Active Infowar (turns) . | . . . . Robot Analysis Total . | . . . . Derelict Logs Recovered . | . . . . Drone Launches . | . . . . Drone Recoveries . | . . . . Exploration | -11 -10 -9 -8 ------------- Run | Yrd Mat Mat Mat Turns Passed 1421 | 118 148 371 784 Spaces Moved 888 | 76 123 230 459 Core 3 | 1 . 1 1 Treads . | . . . . Legs 517 | 17 . 70 430 Wheels 368 | 58 123 159 28 Hover . | . . . . Flight . | . . . . Fastest Speed 50 | 50 90 90 110 Average Speed 110 | 98 90 103 122 Slowest Speed 450 | 190 90 450 400 Overloaded Moves . | . . . . Propulsion Burnouts . | . . . . Robots Hopped . | . . . . Potential Cave-ins . | . . . . Cave-ins Triggered . | . . . . Exploration Rate (%) 29 | 5 25 33 54 Regions Visited 3 Branch Regions . Pre-discovered Areas . | . . . . Known Exits Taken . | . . . . Unknown Exits Taken 3 | 1 1 1 . Scrap Searched . | . . . . Spaces Dug . | . . . . Terrain Destroyed 82 | . . . 82 Melee . | . . . . Projectile . | . . . . AOE 82 | . . . 82 Terrain Rammed . | . . . . Walls Destroyed . | . . . . Machines Disabled . | . . . . Actions | -11 -10 -9 -8 --------- Run | Yrd Mat Mat Mat Total 1114 | 99 142 293 580 Wait 18 | . 3 . 15 Move 885 | 75 122 229 459 Hop . | . . . . Pick Up 23 | 6 3 5 9 Fast Attach 15 | 7 1 6 1 Attach 25 | . . 5 20 Detach 4 | 1 . 2 1 Swap 19 | . 1 5 13 Drop 14 | . 2 5 7 Fire 98 | 9 10 36 43 Melee 12 | . . . 12 Ram 1 | 1 . . . Kick . | . . . . Crush . | . . . . Escape Stasis . | . . . . Rewire . | . . . . Trap . | . . . . Miscellaneous . | . . . . Route ------- -11/Scrapyard -10/Materials -9/Materials -8/Materials History --------- Turn | Location | Event 32 | -11/Scrapyard | Discovered new exit (range 15) 119 | -11/Scrapyard | Entered Materials 258 | -10/Materials | Discovered new exit (range 10) 267 | -10/Materials | Entered another Materials area 267 | -9/Materials | Evolved 2 slots: Propulsion x2 310 | -9/Materials | Build established: Mutant 538 | -9/Materials | Lost 4 parts (1p2n1u) 616 | -9/Materials | Discovered new exit (range 15) 638 | -9/Materials | Entered another Materials area 638 | -8/Materials | Evolved 2 slots: Utility x2 898 | -8/Materials | Build established: Scavenger-Mutant 956 | -8/Materials | Lost 5 parts (1p3n1w) 1017 | -8/Materials | Destroyed 8 combat bots 1182 | -8/Materials | Garrison activated, responded to threat 1359 | -8/Materials | Core integrity fell below 50% 1398 | -8/Materials | Core integrity fell below 20% 1415 | -8/Materials | Lost 12 parts (1p9n2u) 1422 | -8/Materials | Destroyed by S-10 Pest with Light Assault Rifle Last Messages --------------- 01338_ R-06 Scavenger inserts Particle Gun into recycling unit. 01351_ Terminal disabled. 01353_ Core Shielding destroyed. 01355_ W-25 Informer sends out distress signal. 01362_ C-30 ARC bursts open, deploying its payload. 01362_ S-10 Pest unfolds itself. 01366_ Aluminum Leg destroyed. 01368_ Imp. Carbon-fiber Leg destroyed. 01370_ Aluminum Leg destroyed. 01371_ Nuclear Core destroyed. 01379_ Aluminum Leg destroyed. 01384_ S-10 Pest destroyed. 01384_ M-13 Machinist repairs S-10 Pest. 01384_ VSS Leg destroyed. 01384_ Utility Shielding destroyed. 01418_ Lgt. Ion Engine destroyed. 01418_ Com. Wheel destroyed. 01418_ W-25 Informer sends out distress signal. Map ----- +----------------------------------------------------+ | ???# #???# % # #### ### """ | | ???# #???# + ## # """ | | ???# #???# # ##= [ #[""" | | ???# #???#######+########### =/%! T %+%= | | ???# #?????????# ????????# ## #! | | ???+ +?????????# ??????# ## # | | ???# #?????????# ????############ ###### | | ???# #?????????# ??????#==! # # | | ???# #???#+#???# #????#== # # | | ???# #???# ################????#== / + "" | | ???# #???# ## #?????????# # # "" | | ???# #???# ## "" #?????????# # # "" | | #### ##### ##] """ #?????????# # #? | | [ # S" #?????????######## #?#### | | % / #?????????# # #?#### | | # """ [#?????????# # %### # | | #### """ # """ #????####/# + #### # | | ???# """ # """ #????+ + # | | ???# """ !# #????# # # ### | | #### """ ##/###/#######?????# # # # | | ## #?# ?????#####+## # # | | " = ## #?? #?????????# ### | | "%" / ## #??? #?????????# # ##= | | ###+######## #??? #?????????# # #/ | | ## + #???# ###+##????????# # ## | | !## # #???# # @ #??# ##### # # | | !!!### # #???# # #??# ## | | ####?# / #???# # #??#######+###+## # | | ?????# # #???# #s #????????# # | | ?????# # ##### #s #????????# ! T=# | | ?????# # /s #????????# # | | ?????# # #### #????????# | | ?????##/######## #??# #????????# """ "" | | ??????# ???????# #??# ! #????????# """ "" | | ??????#????????# #??######????????# """ "" | | ???????????????# #????????????????# | | ??????????????? ????????????????########+### | | ?????????????? ??????????????????????????# | | ????????????? ??????????????????????????## | | ????????????# ??????????????????????????? | | ????????????#+##### ??????????????????????????? | | ??????????????????? ?????????????????????????? | | ??????????????????? #?????????????????????????? | | ??????????????????? ####?????????????????????????? | | ??????????????????? #????????????????????????????? | | ??????????????????? ?????????????????????????????? | | ?????????????????????????????????????????????????? | | ?????????????????????????????????????????????????? | | ?????????????????????????????????????????????????? | | ?????????????????????????????????????????????????? | +----------------------------------------------------+ Best States ------------- Heat Dissipation 31 Energy Generation 14 Energy Capacity 265 Matter Stores 300 Matter Capacity 300 Sight Range 16 Terrain Scan Density 10 Core Shielding 20 Utility Shielding 33 Weapon Shielding 33 Evasion (%) 55 Targeting Accuracy 8 Item Schematics ----------------- None Robot Schematics ------------------ None Fabricated ------------ Nothing Repaired ---------- Nothing Alien Tech Used ----------------- None Achievements -------------- None Challenges ------------ None Game ------ Seed ActuatorBombardmentClaw Manual? 0 Play Time 00:23:04 Cumulative 452.6 hours Start 2025.05.12 @ 23:27:08 End 2025.05.12 @ 23:45:50 Sessions 1 Manual Loads 0 Difficulty Rogue Special Mode None Game No. 175 Rogue 175 Adventurer 0 Explorer 0 Win Type - Total 0 Types 0/0/0/0/0/0/0/0/0/0 Lore% 15 Gallery% 42 Achievement% 29 Wizard Run 0 Options --------- Layout 1 ASCII 0 Keyboard 1 Movement Numpad Keybinds 0 Fullscreen 1 Font 24/Smallcaps Map View 50x35 Zoom Use 0% Tactical HUD 1 Map Filters NONE Filters NONE Steam 1 RUN: c0aa8956-99e7-43cd-931d-c8a3f5248dc9